bitfinex-derivatives/quotes_BTCF0:USTF0_20240829
["timestamp","ask_amount","ask_price","bid_price","bid_amount"]
[1724974700050,0.2710949,59364.0,59363.0,0.002]
[1724974700450,0.223213,59364.0,59363.0,0.002]
[1724974700752,0.723213,59364.0,59363.0,0.002]
[1724974700953,0.7710949,59364.0,59363.0,0.002]
[1724974721270,0.5668819,59364.0,59363.0,0.447014]
[1724974721567,0.29635396,59364.0,59363.0,0.447014]
[1724974721963,0.03101242,59366.0,59365.0,0.084212]
[1724974722273,0.0039,59372.0,59368.0,0.084207]
[1724974722467,0.00104001,59373.0,59368.0,0.565007]
[1724974722673,0.3281,59375.0,59368.0,0.565007]
[1724974723165,0.02985616,59370.0,59368.0,0.565007]
[1724974723869,0.02985616,59370.0,59368.0,0.566007]
[1724974724066,0.00125275,59369.0,59368.0,0.567007]
[1724974724469,0.00125275,59369.0,59368.0,0.447007]
[1724974727076,0.00125275,59369.0,59368.0,0.807807]
[1724974728869,0.54691142,59376.0,59372.0,0.084201]
[1724974729069,0.12,59373.0,59372.0,0.084201]
[1724974730171,0.12,59373.0,59372.0,0.085201]
[1724974730378,0.12,59373.0,59372.0,0.086201]
[1724974730775,0.12,59373.0,59372.0,0.084201]
[1724974730963,0.57750795,59376.0,59372.0,0.084201]
[1724974730964,0.57750795,59376.0,59372.0,0.002]
[1724974731169,0.52971653,59376.0,59375.0,0.3608]
[1724974731373,0.52971653,59376.0,59375.0,0.444997]
[1724974732670,0.02971653,59376.0,59375.0,0.564997]
[1724974732978,0.0478819,59377.0,59376.0,0.084196]
[1724974733483,0.07822334,59377.0,59376.0,0.084196]
[1724974733975,0.07822334,59377.0,59376.0,0.444996]
[1724974734182,0.07822334,59377.0,59376.0,0.445996]
[1724974734681,0.07822334,59377.0,59376.0,0.446996]
[1724974735478,0.00025275,59378.0,59377.0,0.084195]
[1724974735775,0.00025275,59378.0,59377.0,0.133495]
[1724974736474,0.5478819,59387.0,59377.0,1.238735]
[1724974736674,0.3242,59388.0,59387.0,0.08418]
[1724974736873,0.5,59389.0,59388.0,0.084179]
[1724974737100,0.5,59389.0,59386.0,0.3608]
[1724974737101,0.54811711,59390.0,59389.0,0.084178]
[1724974737381,0.66811711,59390.0,59389.0,0.084178]
[1724974738078,0.54811711,59390.0,59389.0,0.084178]
[1724974738277,0.66811711,59390.0,59389.0,0.084178]
[1724974738683,0.62,59390.0,59389.0,0.084178]
[1724974738884,0.66811711,59390.0,59389.0,0.084178]
[1724974739084,0.66811711,59390.0,59389.0,0.085178]
[1724974739284,0.66811711,59390.0,59389.0,0.086178]
[1724974740589,0.75229311,59390.0,59389.0,0.002]
[1724974742181,0.08418,59387.0,59386.0,0.3608]
[1724974742383,0.20418,59387.0,59386.0,0.3608]
[1724974742986,0.70418,59387.0,59386.0,0.3608]
[1724974743293,0.70418,59387.0,59386.0,0.3618]
[1724974743294,0.25229711,59387.0,59386.0,0.3618]
[1724974743587,0.20418,59387.0,59386.0,0.3618]
[1724974743787,0.20418,59387.0,59386.0,0.3628]
[1724974743991,0.70418,59387.0,59386.0,0.001]
[1724974744191,0.70418,59387.0,59384.0,0.00025275]
[1724974744192,0.084183,59385.0,59384.0,0.00025275]
[1724974744492,0.083183,59385.0,59384.0,0.00025275]
[1724974744895,0.583183,59385.0,59384.0,0.00025275]
[1724974745083,0.63130011,59385.0,59384.0,0.00025275]
[1724974745280,0.63130011,59385.0,59384.0,0.00125275]
[1724974746489,0.63030011,59385.0,59384.0,0.00125275]
[1724974746986,0.63130011,59385.0,59384.0,0.00125275]
[1724974747191,0.63230011,59385.0,59384.0,0.00225275]
[1724974748784,0.63430011,59385.0,59384.0,0.002]
[1724974748992,0.084202,59372.0,59363.0,0.3608]
[1724974749193,0.083202,59372.0,59369.0,0.3608]
[1724974749382,0.5,59371.0,59369.0,0.3608]
[1724974750087,0.499,59371.0,59369.0,0.3608]
[1724974750879,0.499,59371.0,59369.0,0.3648]
[1724974751386,0.5,59371.0,59369.0,0.3608]
[1724974751582,0.53019825,59371.0,59369.0,0.3608]
[1724974751979,0.53019825,59371.0,59369.0,0.3658]
[1724974752790,0.53019825,59371.0,59369.0,0.3608]
[1724974753585,0.61440225,59371.0,59369.0,0.3608]
[1724974753888,0.084204,59370.0,59369.0,0.3608]
[1724974754497,0.584204,59370.0,59369.0,0.3608]
[1724974755188,0.586204,59370.0,59369.0,0.3608]
[1724974755396,0.084207,59369.0,59366.0,0.3608]
[1724974756000,0.586205,59370.0,59366.0,0.3608]
[1724974756697,0.590205,59370.0,59366.0,0.3608]
[1724974757102,0.084206,59369.0,59366.0,0.3608]
[1724974757398,0.083208,59368.0,59366.0,0.3608]
[1724974758701,0.087208,59368.0,59366.0,0.3608]
[1724974759000,0.084209,59367.0,59366.0,0.3608]
[1724974759403,0.458418,59367.0,59366.0,0.3608]
[1724974759613,0.509318,59367.0,59366.0,0.3608]
[1724974759899,1.009318,59367.0,59366.0,0.3608]
[1724974760603,1.06153021,59367.0,59366.0,0.3608]
[1724974761209,1.06353021,59367.0,59366.0,0.3608]
[1724974761899,0.084212,59365.0,59364.0,0.00025275]
[1724974762598,0.168424,59365.0,59364.0,0.00025275]
[1724974763004,0.217324,59365.0,59364.0,0.00025275]
[1724974763401,0.219324,59365.0,59364.0,0.00025275]
[1724974764106,0.768624,59365.0,59364.0,0.00025275]
[1724974764515,0.084219,59360.0,59359.0,0.0039]
[1724974764805,0.5,59359.0,59354.0,0.0039]
[1724974765004,0.36385461,59359.0,59349.0,0.448933]
[1724974765198,0.084224,59356.0,59349.0,0.36562]
[1724974765394,0.084224,59356.0,59349.0,0.3647]
[1724974765601,0.079224,59356.0,59350.0,0.00025275]
[1724974767115,0.079224,59356.0,59355.0,0.3688]
[1724974767501,0.079224,59356.0,59355.0,0.008]
[1724974767700,0.067229,59353.0,59352.0,0.3608]
[1724974767897,0.067229,59353.0,59350.0,0.00025275]
[1724974768101,0.067229,59353.0,59352.0,0.3608]
[1724974768705,0.067229,59353.0,59352.0,0.3728]
[1724974769802,0.068229,59353.0,59352.0,0.3838]
[1724974772004,0.188229,59353.0,59352.0,0.3838]
[1724974772206,0.272459,59353.0,59352.0,0.023]
[1724974772607,0.688229,59353.0,59352.0,0.023]
[1724974772905,0.2186099,59353.0,59352.0,0.023]
[1724974773711,0.7186099,59353.0,59352.0,0.023]
[1724974774508,0.5986099,59353.0,59352.0,0.3838]
[1724974774706,0.5313809,59353.0,59352.0,0.5038]
[1724974775013,0.001,59353.0,59352.0,1.09347]
[1724974776006,0.001,59353.0,59352.0,0.97347]
[1724974777209,0.001,59353.0,59352.0,0.46803]
[1724974781620,0.001,59353.0,59352.0,0.10723]
[1724974781821,0.001,59353.0,59352.0,0.46803]
[1724974786218,0.085229,59353.0,59352.0,0.3838]
[1724974788622,0.085229,59353.0,59352.0,0.023]
[1724974789134,0.085229,59353.0,59352.0,0.3838]
[1724974789326,0.085229,59353.0,59352.0,0.023]
[1724974789529,0.132429,59353.0,59352.0,0.023]
[1724974789733,0.18065957,59353.0,59352.0,0.023]
[1724974790230,0.68065957,59353.0,59352.0,0.023]
[1724974790626,0.632429,59353.0,59352.0,0.023]
[1724974790821,0.68065957,59353.0,59352.0,0.023]
[1724974795039,1.05488857,59353.0,59352.0,0.023]
[1724974796136,0.77146285,59353.0,59352.0,0.023]
[1724974797749,0.90898285,59353.0,59352.0,0.023]
[1724974798538,0.68723385,59353.0,59352.0,0.023]
[1724974798737,0.63900328,59353.0,59352.0,0.023]
[1724974798946,0.204229,59353.0,59352.0,0.023]
[1724974799942,0.084229,59353.0,59352.0,0.023]
[1724974801451,0.5,59354.0,59352.0,0.023]
[1724974801839,0.5,59354.0,59353.0,0.084229]
[1724974802242,0.02982554,59355.0,59353.0,0.084229]
[1724974802444,0.04847812,59358.0,59354.0,0.084227]
[1724974802645,0.5,59357.0,59356.0,0.445024]
[1724974803046,0.54847812,59359.0,59356.0,0.445024]
[1724974803247,0.5,59358.0,59356.0,0.445024]
[1724974803551,0.584222,59358.0,59356.0,0.3608]
[1724974803747,0.29,59357.0,59356.0,0.3608]
[1724974804063,0.33847812,59357.0,59356.0,0.3608]
[1724974805063,0.33947812,59357.0,59356.0,0.3668]
[1724974805950,0.34047812,59357.0,59356.0,0.013]
[1724974806958,0.42470112,59357.0,59356.0,0.013]
[1724974810363,0.05047812,59357.0,59356.0,0.013]
[1724974811064,0.002,59357.0,59356.0,0.013]
[1724974811250,0.086223,59357.0,59356.0,0.013]
[1724974811762,0.13470112,59357.0,59356.0,0.013]
[1724974819267,0.586223,59357.0,59356.0,0.013]
[1724974819469,0.63470112,59357.0,59356.0,0.013]
[1724974820070,1.94436412,59357.0,59356.0,0.013]
[1724974820277,1.94436412,59357.0,59356.0,0.01067369]
[1724974820472,1.94436412,59357.0,59356.0,0.00647294]
[1724974820768,1.94436412,59357.0,59350.0,0.00415275]
[1724974820769,0.168462,59351.0,59350.0,0.00415275]
[1724974820979,0.084241,59344.0,59343.0,0.3647]
[1724974821171,0.204241,59344.0,59343.0,0.3608]
[1724974821880,0.200241,59344.0,59343.0,0.3608]
[1724974822068,0.371241,59344.0,59343.0,0.3708]
[1724974823673,0.872241,59344.0,59343.0,0.3718]
[1724974823871,0.92071912,59344.0,59343.0,0.3718]
[1724974824171,0.42071912,59344.0,59343.0,0.3718]
[1724974824471,0.372241,59344.0,59343.0,0.3718]
[1724974824877,0.872241,59344.0,59343.0,0.3718]
[1724974825073,0.92071912,59344.0,59343.0,0.3718]
[1724974825471,1.3124105,59344.0,59343.0,0.011]
[1724974825869,1.3636105,59344.0,59343.0,0.011]
[1724974827672,2.5533715,59344.0,59343.0,0.011]
[1724974829281,2.4691305,59344.0,59343.0,0.009]
[1724974829579,1.0224105,59344.0,59343.0,0.009]
[1724974829778,1.1598105,59344.0,59343.0,0.009]
[1724974830082,1.0224105,59344.0,59343.0,0.009]
[1724974830279,1.1598105,59344.0,59343.0,0.009]
[1724974830985,1.0224105,59344.0,59343.0,0.009]
[1724974831170,1.1598105,59344.0,59343.0,0.009]
[1724974831378,1.0224105,59344.0,59343.0,0.009]
[1724974831579,0.2187695,59344.0,59343.0,0.009]
[1724974832379,0.17029138,59344.0,59343.0,0.009]
[1724974832778,0.17029138,59344.0,59343.0,0.093243]
[1724974833289,0.03289138,59344.0,59343.0,0.454043]
[1724974833880,0.03289138,59344.0,59343.0,0.959563]
[1724974834189,0.03289138,59344.0,59343.0,0.454043]
[1724974842183,0.002,59344.0,59343.0,1.849563]
[1724974842585,0.0039,59351.0,59350.0,0.084233]
[1724974842889,0.03087922,59351.0,59350.0,0.445033]
[1724974843090,0.04847812,59357.0,59350.0,1.46628]
[1724974843286,0.084223,59358.0,59356.0,0.3608]
[1724974843479,0.084223,59358.0,59351.0,0.1004]
[1724974843480,0.084223,59357.0,59351.0,0.04865275]
[1724974843682,0.084223,59357.0,59351.0,0.00025275]
[1724974843683,0.37423,59352.0,59351.0,0.00025275]
[1724974844488,0.87423,59352.0,59351.0,0.00025275]
[1724974844686,0.42270812,59352.0,59351.0,0.00025275]
[1724974844988,0.37423,59352.0,59351.0,0.00025275]
[1724974845390,0.87423,59352.0,59351.0,0.00025275]
[1724974845595,0.92270812,59352.0,59351.0,0.00025275]
[1724974845902,0.42270812,59352.0,59351.0,0.00025275]
[1724974846193,0.37523,59352.0,59351.0,0.00025275]
[1724974846595,0.90543186,59352.0,59351.0,0.00025275]
[1724974846994,0.45390998,59352.0,59351.0,0.00025275]
[1724974847294,0.40543186,59352.0,59351.0,0.00025275]
[1724974847595,0.90543186,59352.0,59351.0,0.00025275]
[1724974847796,0.95390998,59352.0,59351.0,0.00025275]
[1724974848094,0.45390998,59352.0,59351.0,0.00025275]
[1724974848292,0.40543186,59352.0,59351.0,0.00025275]
[1724974848886,0.90543186,59352.0,59351.0,0.00025275]
[1724974849292,0.45390998,59352.0,59351.0,0.00025275]
[1724974849596,0.40543186,59352.0,59351.0,0.00025275]
[1724974850000,0.90543186,59352.0,59351.0,0.00025275]
[1724974850298,0.95390998,59352.0,59351.0,0.00025275]
[1724974856394,1.03813998,59352.0,59351.0,0.00025275]
[1724974856597,0.084236,59348.0,59347.0,0.0039]
[1724974856802,0.445036,59348.0,59343.0,0.3608]
[1724974857098,0.29,59346.0,59343.0,0.3608]
[1724974857700,0.084241,59344.0,59343.0,0.3608]
[1724974858097,0.082241,59344.0,59343.0,0.3688]
[1724974858806,0.083241,59344.0,59343.0,0.01]
[1724974859101,0.001,59344.0,59343.0,0.01]
[1724974860192,0.03108794,59344.0,59343.0,0.01]
[1724974860920,0.03108794,59344.0,59343.0,0.002]
[1724974861203,0.03208794,59344.0,59343.0,0.01]
[1724974862304,0.03208794,59344.0,59343.0,0.094243]
[1724974862605,0.002,59344.0,59343.0,0.094243]
[1724974863394,0.55237812,59353.0,59352.0,0.08423]
[1724974863599,0.04847812,59359.0,59357.0,0.084223]
[1724974863801,0.00494001,59360.0,59359.0,0.08422]
[1724974863802,0.00104001,59360.0,59359.0,0.08422]
[1724974864095,0.00025275,59361.0,59360.0,0.084219]
[1724974864296,0.31187239,59363.0,59360.0,0.084219]
[1724974864497,0.3756,59367.0,59358.0,0.409]
[1724974864498,0.03009923,59364.0,59363.0,0.084214]
[1724974864708,0.8242,59367.0,59363.0,0.445014]
[1724974864906,0.8545967,59367.0,59363.0,0.445014]
[1724974865108,1.1445967,59367.0,59363.0,0.445014]
[1724974865307,0.05493476,59366.0,59363.0,0.445014]
[1724974866304,0.05493476,59366.0,59365.0,0.374212]
[1724974866501,0.00088,59367.0,59366.0,0.08421]
[1724974866700,0.0039,59373.0,59370.0,0.084204]
[1724974866900,0.0039,59376.0,59370.0,0.735004]
[1724974867208,0.0039,59376.0,59370.0,5.610324]
[1724974868010,0.0039,59376.0,59370.0,5.611324]
[1724974869506,0.0039,59376.0,59370.0,5.612324]
[1724974870015,0.0039,59376.0,59370.0,0.447004]
[1724974872507,0.03423539,59376.0,59370.0,0.447004]
[1724974875117,0.03423539,59376.0,59370.0,0.446004]
[1724974875315,0.03423539,59376.0,59370.0,0.448004]
[1724974875815,0.03423539,59376.0,59370.0,0.449004]
[1724974876517,0.03423539,59376.0,59370.0,0.451004]
[1724974877718,0.03423539,59376.0,59370.0,0.450004]
[1724974879004,0.03423539,59376.0,59370.0,0.447004]
[1724974879208,0.03423539,59376.0,59370.0,0.449004]
[1724974879409,0.03423539,59376.0,59370.0,0.447004]
[1724974879813,0.03423539,59376.0,59370.0,0.450004]
[1724974880415,0.03423539,59376.0,59370.0,0.447004]
[1724974880617,0.03423539,59376.0,59370.0,0.449004]
[1724974881513,0.03423539,59376.0,59370.0,0.3648]
[1724974881514,0.08445575,59371.0,59370.0,0.3648]
[1724974881816,0.00025275,59371.0,59370.0,0.449004]
[1724974882211,0.00025275,59371.0,59370.0,0.450004]
[1724974882406,0.00025275,59371.0,59370.0,1.555324]
[1724974882718,0.00025275,59371.0,59370.0,1.554324]
[1724974882914,0.00025275,59371.0,59370.0,0.954324]
[1724974886618,0.00025275,59371.0,59370.0,1.315124]
[1724974887313,0.00025275,59371.0,59370.0,0.809804]
[1724974894117,0.00025275,59371.0,59370.0,0.004]
[1724974894318,0.08445575,59371.0,59370.0,0.004]
[1724974895333,0.08445575,59371.0,59370.0,0.002]
[1724974895621,0.08445575,59371.0,59370.0,0.087204]
[1724974902614,0.08445575,59371.0,59370.0,0.003]
[1724974902814,0.37445575,59371.0,59370.0,0.003]
[1724974906225,0.08445575,59371.0,59370.0,0.003]
[1724974909337,0.00025275,59371.0,59370.0,0.087204]
[1724974912030,0.00025275,59371.0,59370.0,0.448004]
[1724974914736,0.00025275,59371.0,59370.0,0.808804]
[1724974915641,0.00025275,59371.0,59370.0,0.858304]
[1724974915837,0.00025275,59371.0,59370.0,1.447828]
[1724974916042,0.00025275,59371.0,59370.0,1.737828]
[1724974916334,7.5e-07,59371.0,59370.0,2.337828]
[1724974916537,7.5e-07,59371.0,59370.0,2.422032]
[1724974916847,7.5e-07,59371.0,59370.0,6.192032]
[1724974920341,0.02960795,59383.0,59375.0,0.168394]
[1724974920342,7.5e-07,59376.0,59375.0,0.168394]
[1724974920541,7.5e-07,59376.0,59375.0,0.819194]
[1724974920741,7.5e-07,59376.0,59375.0,1.324434]
[1724974921446,7.5e-07,59376.0,59375.0,1.924434]
[1724974921644,0.00800075,59376.0,59375.0,1.924434]
[1724974921942,0.00800075,59376.0,59375.0,1.324434]
[1724974922241,0.00800075,59376.0,59375.0,1.924434]
[1724974922432,0.00800075,59376.0,59375.0,1.95414507]
[1724974922835,0.00600075,59376.0,59375.0,1.95414507]
[1724974923439,0.00200075,59376.0,59375.0,1.95414507]
[1724974923639,0.00400075,59376.0,59375.0,1.95414507]
[1724974924742,7.5e-07,59376.0,59375.0,1.95414507]
[1724974924935,7.5e-07,59376.0,59375.0,2.31494507]
[1724974928447,5e-07,59381.0,59380.0,0.25257]
[1724974928746,0.0518,59398.0,59397.0,0.084166]
[1724974930645,0.0518,59398.0,59397.0,0.085166]
[1724974930646,0.09288414,59398.0,59397.0,0.085166]
[1724974931046,0.59796414,59398.0,59397.0,0.001]
[1724974931250,1.28212914,59398.0,59397.0,0.001]
[1724974931550,1.79612914,59398.0,59397.0,0.002]
[1724974931744,1.79612914,59398.0,59392.0,0.00025254]
[1724974931745,0.084172,59393.0,59392.0,0.00025254]
[1724974931953,0.3608,59393.0,59385.0,0.084183]
[1724974932153,0.29,59390.0,59385.0,0.084183]
[1724974932345,0.08418,59388.0,59385.0,0.084183]
[1724974932546,0.0475,59387.0,59385.0,0.084183]
[1724974932746,0.0979,59387.0,59385.0,0.444983]
[1724974932944,0.182081,59387.0,59385.0,0.444983]
[1724974933253,0.182081,59387.0,59385.0,0.445983]
[1724974933843,0.192081,59387.0,59385.0,0.445983]
[1724974934046,0.2224413,59387.0,59385.0,0.445983]
[1724974934557,0.084182,59386.0,59385.0,0.3628]
[1724974935253,0.136282,59386.0,59385.0,0.3628]
[1724974935653,0.136282,59386.0,59385.0,0.3618]
[1724974935964,0.136282,59386.0,59380.0,0.36105254]
[1724974935965,0.084189,59381.0,59380.0,0.36105254]
[1724974936254,0.878389,59381.0,59380.0,0.36105254]
[1724974937557,0.886389,59381.0,59380.0,0.36205254]
[1724974938052,0.893389,59381.0,59380.0,0.36305254]
[1724974938660,0.92849431,59381.0,59380.0,0.36305254]
[1724974938850,1.52849431,59381.0,59380.0,0.36305254]
[1724974939052,0.084199,59374.0,59369.0,0.445005]
[1724974939254,0.1,59373.0,59369.0,0.3608]
[1724974939558,0.6,59373.0,59369.0,0.3608]
[1724974939857,0.084204,59370.0,59369.0,0.3608]
[1724974940557,0.084204,59370.0,59369.0,0.3648]
[1724974941260,0.084204,59370.0,59369.0,0.3698]
[1724974941557,0.03526522,59372.0,59369.0,0.3698]
[1724974941757,0.60104001,59373.0,59369.0,0.3698]
[1724974941944,0.6,59373.0,59369.0,0.3698]
[1724974942147,0.0487,59372.0,59369.0,0.3698]
[1724974942659,0.0487,59372.0,59369.0,0.3608]
[1724974942858,0.0487,59372.0,59369.0,0.3658]
[1724974943358,0.0487,59372.0,59369.0,0.3638]
[1724974943559,0.0487,59372.0,59369.0,0.3658]
[1724974945257,0.0487,59372.0,59371.0,0.3608]
[1724974948362,0.0487,59372.0,59371.0,0.3618]
[1724974950862,0.0487,59372.0,59371.0,0.446003]
[1724974952059,0.5,59373.0,59372.0,0.084202]
[1724974952260,0.03049385,59374.0,59373.0,0.0842]
[1724974952462,0.16753392,59380.0,59378.0,0.084193]
[1724974952658,0.16224003,59380.0,59379.0,0.3608]
[1724974952861,0.16224003,59380.0,59379.0,0.444992]
[1724974953065,0.11404003,59380.0,59379.0,0.444992]
[1724974954069,0.03884903,59380.0,59379.0,0.445992]
[1724974954869,0.04384903,59380.0,59379.0,0.446992]
[1724974955270,0.03484903,59380.0,59379.0,0.445992]
[1724974955470,0.04084903,59380.0,59379.0,0.446992]
[1724974957968,0.04084903,59380.0,59379.0,0.3628]
[1724974959472,0.12503903,59380.0,59379.0,0.3628]
[1724974959663,0.12503903,59380.0,59379.0,0.002]
[1724974960068,0.62503903,59380.0,59379.0,0.002]
[1724974960277,0.66018195,59380.0,59379.0,0.002]
[1724974960478,0.16018195,59380.0,59379.0,0.002]
[1724974960778,0.12503903,59380.0,59379.0,0.002]
[1724974961076,1.13027903,59380.0,59379.0,0.002]
[1724974961262,0.66542195,59380.0,59379.0,0.002]
[1724974961468,1.34961195,59380.0,59379.0,0.002]
[1724974961871,1.84961195,59380.0,59379.0,0.002]
[1724974966069,0.0842,59373.0,59372.0,0.0039]
[1724974966271,0.084204,59370.0,59367.0,0.0487]
[1724974967574,0.081204,59370.0,59367.0,0.0487]
[1724974967975,0.084206,59369.0,59367.0,0.0487]
[1724974968175,0.08284292,59372.0,59367.0,0.0487]
[1724974968176,0.374207,59368.0,59367.0,0.0487]
[1724974968481,0.374207,59368.0,59367.0,0.0597]
[1724974969282,0.374207,59368.0,59367.0,0.011]
[1724974969477,0.374207,59368.0,59367.0,0.008]
[1724974969983,0.40934992,59368.0,59367.0,0.008]
[1724974970682,0.874207,59368.0,59367.0,0.004]
[1724974970881,0.875207,59368.0,59367.0,0.006]
[1724974971382,0.375207,59368.0,59367.0,0.006]
[1724974971583,0.41034992,59368.0,59367.0,0.006]
[1724974971783,0.375207,59368.0,59367.0,0.006]
[1724974972883,0.41081243,59368.0,59367.0,0.006]
[1724974973788,0.375207,59368.0,59367.0,0.006]
[1724974973987,0.875207,59368.0,59367.0,0.006]
[1724974974286,0.375207,59368.0,59367.0,0.006]
[1724974974993,0.875207,59368.0,59367.0,0.006]
[1724974975487,0.375207,59368.0,59367.0,0.006]
[1724974976079,0.205207,59368.0,59367.0,0.006]
[1724974977183,0.705207,59368.0,59367.0,0.006]
[1724974977387,0.205207,59368.0,59367.0,0.006]
[1724974978290,0.705207,59368.0,59367.0,0.006]
[1724974978692,0.205207,59368.0,59367.0,0.006]
[1724974979289,0.205207,59368.0,59367.0,0.3668]
[1724974980798,0.121,59368.0,59367.0,0.451009]
[1724974981505,0.621,59368.0,59367.0,0.451009]
[1724974981887,0.15657505,59368.0,59367.0,0.451009]
[1724974982292,0.621,59368.0,59367.0,0.451009]
[1724974982689,0.15657505,59368.0,59367.0,0.451009]
[1724974983101,0.001,59368.0,59367.0,0.451009]
[1724974983692,0.03557505,59370.0,59367.0,0.3648]
[1724974983892,0.14992685,59372.0,59367.0,0.3668]
[1724974984194,0.14992685,59372.0,59368.0,0.0484]
[1724974984800,0.14992685,59372.0,59371.0,0.084203]
[1724974986689,0.14992685,59372.0,59371.0,0.805803]
[1724974987294,0.02992685,59372.0,59371.0,0.805803]
[1724974987593,0.12,59375.0,59373.0,0.0842]
[1724974987795,0.5796632,59379.0,59376.0,0.084195]
[1724974987994,0.5796632,59379.0,59378.0,0.3608]
[1724974988400,0.11383592,59379.0,59378.0,0.3608]
[1724974989204,0.12083592,59379.0,59378.0,0.3618]
[1724974989401,0.74083592,59379.0,59378.0,0.3618]
[1724974989599,0.53664392,59379.0,59378.0,0.3618]
[1724974989802,0.03664392,59379.0,59378.0,0.445993]
[1724974990798,0.015,59379.0,59378.0,0.445993]
[1724974993807,0.015,59379.0,59378.0,0.806793]
[1724974996313,0.007,59379.0,59378.0,0.810793]
[1724974996510,0.12,59379.0,59378.0,0.7296]
[1724974996920,0.204192,59379.0,59378.0,0.7296]
[1724974998721,0.204192,59379.0,59378.0,0.7256]
[1724974998921,0.204192,59379.0,59378.0,0.7266]
[1724974999227,0.204192,59379.0,59378.0,0.7226]
[1724974999423,0.086192,59379.0,59378.0,0.7236]
[1724974999619,0.206192,59379.0,59378.0,0.7236]
[1724975000028,0.206192,59379.0,59378.0,0.7216]
[1724975000229,0.207192,59379.0,59378.0,0.7216]
[1724975000631,0.087192,59379.0,59378.0,0.7216]
[1724975001628,0.003,59379.0,59378.0,0.805793]
[1724975002631,0.003,59379.0,59378.0,0.084193]
[1724975002827,0.003,59379.0,59378.0,0.444993]
[1724975003724,0.003,59379.0,59378.0,0.564993]
[1724975004823,0.003,59379.0,59378.0,0.444993]
[1724975006032,0.003,59379.0,59378.0,0.564993]
[1724975007232,0.003,59379.0,59378.0,1.070233]
[1724975013243,0.003,59379.0,59378.0,0.564993]
[1724975014435,0.001,59379.0,59378.0,0.564993]
[1724975014634,0.001,59379.0,59378.0,0.569993]
[1724975015842,0.03092804,59382.0,59381.0,0.084189]
[1724975016035,0.00025254,59384.0,59381.0,0.084189]
[1724975016036,0.00025254,59384.0,59383.0,0.084186]
[1724975016432,0.03000491,59384.0,59383.0,0.084186]
[1724975016639,0.00025254,59384.0,59383.0,0.084186]
[1724975017437,0.03032336,59384.0,59383.0,0.084186]
[1724975017642,0.00125254,59384.0,59383.0,0.084186]
[1724975019037,0.00025254,59384.0,59383.0,0.084186]
[1724975019247,0.00225254,59384.0,59383.0,0.084186]
[1724975019640,0.00325254,59384.0,59383.0,0.084186]
[1724975021437,0.00325254,59384.0,59383.0,0.805786]
[1724975021841,0.00125254,59384.0,59383.0,0.084186]
[1724975022046,0.00125254,59384.0,59383.0,0.805786]
[1724975023140,0.00025254,59384.0,59383.0,0.806786]
[1724975024744,0.00025254,59384.0,59383.0,0.445986]
[1724975030956,0.00125254,59384.0,59383.0,0.445986]
[1724975032458,0.00125254,59384.0,59383.0,0.444986]
[1724975037665,0.00125254,59384.0,59383.0,0.084186]
[1724975037852,0.00125254,59384.0,59383.0,0.444986]
[1724975044066,0.00025254,59384.0,59383.0,0.444986]
[1724975045159,0.00025254,59384.0,59383.0,0.564986]
[1724975045361,0.00025254,59384.0,59383.0,0.619386]
[1724975045568,0.00025254,59384.0,59383.0,0.620386]
[1724975046567,0.00025254,59384.0,59383.0,0.704572]
[1724975047763,0.00025254,59384.0,59383.0,0.620386]
[1724975047963,0.00025254,59384.0,59383.0,0.445986]
[1724975049264,0.03038093,59384.0,59383.0,0.445986]
[1724975049469,0.00025254,59384.0,59383.0,0.445986]
[1724975052159,0.00025254,59384.0,59383.0,0.806786]
[1724975054562,0.00025254,59384.0,59383.0,0.445986]
[1724975057757,0.14978575,59386.0,59383.0,0.445986]
[1724975057962,0.204184,59385.0,59383.0,0.445986]
[1724975065481,0.084184,59385.0,59383.0,0.445986]
[1724975065972,0.084184,59385.0,59384.0,0.084185]
[1724975066773,0.12,59388.0,59385.0,0.084182]
[1724975068177,0.12,59388.0,59387.0,0.3608]
[1724975068380,0.122,59388.0,59387.0,0.3608]
[1724975069080,0.123,59388.0,59387.0,0.3608]
[1724975069979,0.127,59388.0,59387.0,0.3608]
[1724975070272,0.13,59388.0,59387.0,0.3608]
[1724975071379,0.63,59388.0,59387.0,0.3608]
[1724975071573,0.65779629,59388.0,59387.0,0.3608]
[1724975073477,0.53779629,59388.0,59387.0,0.44498]
[1724975073679,0.03779629,59388.0,59387.0,0.44498]
[1724975073880,0.01,59388.0,59387.0,0.44498]
[1724975075479,0.01,59388.0,59387.0,0.60968]
[1724975078683,0.01,59388.0,59387.0,0.97048]
[1724975080681,0.01,59388.0,59387.0,0.91638]
[1724975081079,0.01,59388.0,59387.0,0.86158]
[1724975090993,0.00911719,59397.0,59387.0,0.7774]
[1724975091196,0.00911719,59397.0,59396.0,0.444968]
[1724975091197,0.03894203,59397.0,59396.0,0.444968]
[1724975091496,0.00911719,59397.0,59396.0,0.444968]
[1724975091793,0.12,59400.0,59397.0,0.084166]
[1724975091991,0.14779629,59400.0,59397.0,0.084166]
[1724975092590,0.08095516,59398.0,59397.0,0.084166]
[1724975094484,0.08195516,59398.0,59397.0,0.085166]
[1724975094690,0.09495516,59398.0,59397.0,0.446966]
[1724975099799,0.04385516,59398.0,59397.0,0.446966]
[1724975099992,0.04385516,59398.0,59397.0,0.500766]
[1724975101796,0.014,59398.0,59397.0,0.584932]
[1724975103202,0.00025139,59403.0,59402.0,0.084159]
[1724975103394,0.00025139,59403.0,59402.0,0.564959]
[1724975103599,0.00025139,59403.0,59402.0,0.444959]
[1724975104603,0.00325139,59403.0,59402.0,0.497459]
[1724975105304,0.01325139,59403.0,59402.0,0.498459]
[1724975107711,0.01325139,59403.0,59402.0,0.618459]